[Event "Titled Tuesday Blitz September 21 2021"]
[White "Petrovskyi, Vadym"]
[Black "Sjugirov, Sanan"]
[WhiteFideId "14165210"]
[BlackFideId "4189302"]
[WhiteElo "2334"]
[BlackElo "2654"]
[Result "0-1"]
[Round "04"]
[TimeControl "180+1"]
[Date "2021.09.21"]
[WhiteClock "0:00:14"]
[BlackClock "0:00:15"]

1. e4 {[%clk 0:03:00]}  c6 {[%clk 0:02:59]} 2. d4 {[%clk 0:03:00]}  d5 {[%clk 0:03:00]} 3. Nc3 {[%clk 0:02:58]}  dxe4 {[%clk 0:03:00]} 4. Nxe4 {[%clk 0:02:58]}  Nf6 {[%clk 0:03:01]} 5. Nxf6+ {[%clk 0:02:57]}  exf6 {[%clk 0:03:02]} 6. c3 {[%clk 0:02:57]}  Bd6 {[%clk 0:03:02]} 7. Bd3 {[%clk 0:02:58]}  O-O {[%clk 0:03:02]} 8. Qc2 {[%clk 0:02:58]}  Re8+ {[%clk 0:03:02]} 9. Ne2 {[%clk 0:02:58]}  h5 {[%clk 0:03:00]} 10. Be3 {[%clk 0:02:58]}  Nd7 {[%clk 0:02:54]} 11. Ng3 {[%clk 0:02:58]}  Bf4 {[%clk 0:02:32]} 12. O-O {[%clk 0:02:56]}  Bxe3 {[%clk 0:02:25]} 13. fxe3 {[%clk 0:02:57]}  h4 {[%clk 0:02:23]} 14. Nf5 {[%clk 0:02:56]}  Nf8 {[%clk 0:02:15]} 15. Rae1 {[%clk 0:02:55]}  Bxf5 {[%clk 0:02:09]} 16. Bxf5 {[%clk 0:02:56]}  g6 {[%clk 0:01:59]} 17. Bd3 {[%clk 0:02:55]}  f5 {[%clk 0:01:59]} 18. e4 {[%clk 0:02:49]}  fxe4 {[%clk 0:01:59]} 19. Bxe4 {[%clk 0:02:49]}  Qg5 {[%clk 0:01:40]} 20. Qb3 {[%clk 0:02:46]}  Re7 {[%clk 0:01:39]} 21. d5 {[%clk 0:01:58]}  Rae8 {[%clk 0:01:33]} 22. d6 {[%clk 0:01:56]}  Qc5+ {[%clk 0:01:31]} 23. Kh1 {[%clk 0:01:44]}  Qxd6 {[%clk 0:01:31]} 24. Rd1 {[%clk 0:01:28]}  Qe6 {[%clk 0:01:25]} 25. Qxe6 {[%clk 0:01:27]}  Nxe6 {[%clk 0:01:25]} 26. b4 {[%clk 0:01:16]}  Kg7 {[%clk 0:01:24]} 27. Bd3 {[%clk 0:01:15]}  Ng5 {[%clk 0:01:17]} 28. Bc4 {[%clk 0:01:12]}  Re3 {[%clk 0:01:08]} 29. Rd7 {[%clk 0:01:09]}  R8e7 {[%clk 0:01:09]} 30. Rd4 {[%clk 0:01:03]}  h3 {[%clk 0:01:06]} 31. gxh3 {[%clk 0:01:03]}  Rxh3 {[%clk 0:01:03]} 32. Rg4 {[%clk 0:00:58]}  Rxc3 {[%clk 0:00:56]} 33. Bb3 {[%clk 0:00:54]}  f6 {[%clk 0:00:33]} 34. h4 {[%clk 0:00:51]}  Re4 {[%clk 0:00:25]} 35. Rxe4 {[%clk 0:00:18]}  Nxe4 {[%clk 0:00:26]} 36. Kg2 {[%clk 0:00:15]}  f5 {[%clk 0:00:25]} 37. Rd1 {[%clk 0:00:15]}  Rg3+ {[%clk 0:00:23]} 38. Kh2 {[%clk 0:00:15]}  Rg4 {[%clk 0:00:23]} 39. Rd7+ {[%clk 0:00:15]}  Kf6 {[%clk 0:00:23]} 40. Rxb7 {[%clk 0:00:15]}  Rxh4+ {[%clk 0:00:23]} 41. Kg2 {[%clk 0:00:15]}  Rg4+ {[%clk 0:00:24]} 42. Kf3 {[%clk 0:00:14]}  Nd2+ {[%clk 0:00:24]} 43. Ke2 {[%clk 0:00:14]}  Nxb3 {[%clk 0:00:24]} 44. axb3 {[%clk 0:00:15]}  Rg3 {[%clk 0:00:24]} 45. Rxa7 {[%clk 0:00:14]}  Rxb3 {[%clk 0:00:23]} 46. Rb7 {[%clk 0:00:15]}  f4 {[%clk 0:00:19]} 47. Kd2 {[%clk 0:00:15]}  g5 {[%clk 0:00:18]} 48. Kc2 {[%clk 0:00:14]}  Re3 {[%clk 0:00:18]} 49. Rb6 {[%clk 0:00:15]}  Re6 {[%clk 0:00:18]} 50. Kd3 {[%clk 0:00:14]}  f3 {[%clk 0:00:18]} 51. Rb8 {[%clk 0:00:14]}  Kf5 {[%clk 0:00:15]} 52. Rf8+ {[%clk 0:00:14]}  Kg4 {[%clk 0:00:15]} 0-1


[Site "https://www.chess.com"]

[Event "Titled Tuesday Blitz September 21 2021"]
[White "Plotnikov, Pavel"]
[Black "Kovalchuk94"]
[WhiteFideId "4170342"]
[WhiteElo "2298"]
[BlackElo "2686"]
[Result "0-1"]
[Round "04"]
[TimeControl "180+1"]
[Date "2021.09.21"]
[WhiteClock "0:00:02"]
[BlackClock "0:01:01"]

1. e4 {[%clk 0:03:00]}  e5 {[%clk 0:02:55]} 2. Nf3 {[%clk 0:02:51]}  Nf6 {[%clk 0:02:54]} 3. Nxe5 {[%clk 0:02:49]}  d6 {[%clk 0:02:54]} 4. Nf3 {[%clk 0:02:49]}  Nxe4 {[%clk 0:02:54]} 5. Nc3 {[%clk 0:02:50]}  Nxc3 {[%clk 0:02:54]} 6. dxc3 {[%clk 0:02:50]}  Be7 {[%clk 0:02:55]} 7. Be3 {[%clk 0:02:50]}  Nd7 {[%clk 0:02:56]} 8. Qd2 {[%clk 0:02:50]}  Nf6 {[%clk 0:02:56]} 9. O-O-O {[%clk 0:02:49]}  O-O {[%clk 0:02:56]} 10. Bd3 {[%clk 0:02:47]}  c5 {[%clk 0:02:57]} 11. c4 {[%clk 0:02:46]}  b5 {[%clk 0:02:54]} 12. Ng5 {[%clk 0:02:24]}  bxc4 {[%clk 0:02:39]} 13. Bxc4 {[%clk 0:02:22]}  Bb7 {[%clk 0:02:25]} 14. Qc3 {[%clk 0:01:38]}  d5 {[%clk 0:02:12]} 15. Be2 {[%clk 0:01:28]}  d4 {[%clk 0:02:07]} 16. Qe1 {[%clk 0:01:12]}  Nd5 {[%clk 0:02:02]} 17. Bd3 {[%clk 0:01:08]}  Bxg5 {[%clk 0:02:01]} 18. Bxg5 {[%clk 0:01:08]}  Qxg5+ {[%clk 0:02:02]} 19. Kb1 {[%clk 0:01:07]}  Nb4 {[%clk 0:01:57]} 20. f4 {[%clk 0:01:02]}  Nxd3 {[%clk 0:01:53]} 21. Rxd3 {[%clk 0:00:59]}  Qxf4 {[%clk 0:01:50]} 22. Rf1 {[%clk 0:00:59]}  Rae8 {[%clk 0:01:38]} 23. Qd1 {[%clk 0:00:58]}  Qe4 {[%clk 0:01:37]} 24. Rg3 {[%clk 0:00:48]}  Qe2 {[%clk 0:01:34]} 25. Qc1 {[%clk 0:00:46]}  Be4 {[%clk 0:01:32]} 26. Rg1 {[%clk 0:00:31]}  Bg6 {[%clk 0:01:26]} 27. a3 {[%clk 0:00:28]}  c4 {[%clk 0:01:22]} 28. h4 {[%clk 0:00:27]}  d3 {[%clk 0:01:21]} 29. Qg5 {[%clk 0:00:23]}  dxc2+ {[%clk 0:01:19]} 30. Ka2 {[%clk 0:00:23]}  Re5 {[%clk 0:01:15]} 31. Qf4 {[%clk 0:00:17]}  Qe4 {[%clk 0:01:15]} 32. Qf2 {[%clk 0:00:15]}  Qxh4 {[%clk 0:01:09]} 33. Rf1 {[%clk 0:00:11]}  Rf5 {[%clk 0:01:07]} 34. Qxa7 {[%clk 0:00:05]}  Qxg3 {[%clk 0:01:01]} 35. Rxf5 {[%clk 0:00:03]}  Qb3+ {[%clk 0:01:01]} 36. Ka1 {[%clk 0:00:02]}  c1=Q# {[%clk 0:01:01]} 0-1


[Site "https://www.chess.com"]

[Event "Titled Tuesday Blitz September 21 2021"]
[White "Popilski, Gil"]
[Black "Araujo Filho, Luiz Antonio Coel"]
[WhiteFideId "2809060"]
[BlackFideId "2130661"]
[WhiteElo "2537"]
[BlackElo "2222"]
[Result "1-0"]
[Round "04"]
[TimeControl "180+1"]
[Date "2021.09.21"]
[WhiteClock "0:00:55"]
[BlackClock "0:00:03"]

1. d4 {[%clk 0:03:00]}  f5 {[%clk 0:02:59]} 2. g3 {[%clk 0:03:00]}  Nf6 {[%clk 0:02:58]} 3. Bg2 {[%clk 0:03:00]}  g6 {[%clk 0:02:59]} 4. c3 {[%clk 0:03:00]}  Bg7 {[%clk 0:02:59]} 5. Qb3 {[%clk 0:03:00]}  d5 {[%clk 0:02:55]} 6. c4 {[%clk 0:02:54]}  e6 {[%clk 0:02:54]} 7. Nc3 {[%clk 0:02:50]}  c6 {[%clk 0:02:53]} 8. Bf4 {[%clk 0:02:49]}  O-O {[%clk 0:02:51]} 9. Nf3 {[%clk 0:02:48]}  Nbd7 {[%clk 0:02:37]} 10. O-O {[%clk 0:02:39]}  Nb6 {[%clk 0:02:35]} 11. c5 {[%clk 0:02:31]}  Nbd7 {[%clk 0:02:35]} 12. Bd6 {[%clk 0:02:28]}  Re8 {[%clk 0:02:26]} 13. Qa4 {[%clk 0:02:27]}  Ne4 {[%clk 0:02:21]} 14. Nxe4 {[%clk 0:02:25]}  fxe4 {[%clk 0:02:16]} 15. Ne5 {[%clk 0:02:24]}  Nxe5 {[%clk 0:02:13]} 16. dxe5 {[%clk 0:02:23]}  Qg5 {[%clk 0:02:01]} 17. f4 {[%clk 0:02:18]}  Qd8 {[%clk 0:00:34]} 18. b4 {[%clk 0:02:15]}  Bd7 {[%clk 0:00:32]} 19. Qd1 {[%clk 0:02:04]}  Rc8 {[%clk 0:00:26]} 20. e3 {[%clk 0:02:01]}  Ra8 {[%clk 0:00:24]} 21. Qd2 {[%clk 0:01:57]}  Rc8 {[%clk 0:00:23]} 22. a4 {[%clk 0:01:56]}  Ra8 {[%clk 0:00:21]} 23. a5 {[%clk 0:01:56]}  a6 {[%clk 0:00:18]} 24. Ra2 {[%clk 0:01:53]}  Kh8 {[%clk 0:00:16]} 25. g4 {[%clk 0:01:52]}  Qh4 {[%clk 0:00:13]} 26. h3 {[%clk 0:01:52]}  Kg8 {[%clk 0:00:10]} 27. Qf2 {[%clk 0:01:51]}  Qxf2+ {[%clk 0:00:09]} 28. Raxf2 {[%clk 0:01:52]}  Kh8 {[%clk 0:00:09]} 29. h4 {[%clk 0:01:52]}  Kg8 {[%clk 0:00:09]} 30. Bh3 {[%clk 0:01:51]}  Kh8 {[%clk 0:00:06]} 31. Kh2 {[%clk 0:01:51]}  Kg8 {[%clk 0:00:07]} 32. Kg3 {[%clk 0:01:51]}  Kh8 {[%clk 0:00:07]} 33. h5 {[%clk 0:01:49]}  Kg8 {[%clk 0:00:07]} 34. hxg6 {[%clk 0:01:39]}  hxg6 {[%clk 0:00:07]} 35. Rh2 {[%clk 0:01:39]}  Rac8 {[%clk 0:00:07]} 36. Rfh1 {[%clk 0:01:38]}  Rcd8 {[%clk 0:00:06]} 37. Kh4 {[%clk 0:01:25]}  Kf7 {[%clk 0:00:06]} 38. Kg5 {[%clk 0:01:25]}  Rh8 {[%clk 0:00:05]} 39. Bf1 {[%clk 0:01:23]}  Rxh2 {[%clk 0:00:05]} 40. Rxh2 {[%clk 0:01:24]}  Rh8 {[%clk 0:00:05]} 41. Rxh8 {[%clk 0:01:23]}  Bxh8 {[%clk 0:00:05]} 42. Kh6 {[%clk 0:01:24]}  Bg7+ {[%clk 0:00:05]} 43. Kh7 {[%clk 0:01:24]}  Bc8 {[%clk 0:00:04]} 44. Be2 {[%clk 0:01:20]}  Bd7 {[%clk 0:00:05]} 45. Bd1 {[%clk 0:00:59]}  Bc8 {[%clk 0:00:05]} 46. Be2 {[%clk 0:00:59]}  Bd7 {[%clk 0:00:05]} 47. g5 {[%clk 0:00:56]}  Bc8 {[%clk 0:00:04]} 48. Bh5 {[%clk 0:00:55]}  gxh5 {[%clk 0:00:03]} 49. g6+ {[%clk 0:00:55]}  Ke8 {[%clk 0:00:03]} 50. Kxg7 {[%clk 0:00:56]}  h4 {[%clk 0:00:03]} 51. Kf6 {[%clk 0:00:55]} 1-0


[Site "https://www.chess.com"]

[Event "Titled Tuesday Blitz September 21 2021"]
[White "Pourkashiyan, Atousa"]
[Black "Bacrot, Etienne"]
[WhiteFideId "12502014"]
[BlackFideId "605506"]
[WhiteElo "2285"]
[BlackElo "2673"]
[Result "0-1"]
[Round "04"]
[TimeControl "180+1"]
[Date "2021.09.21"]
[WhiteClock "0:00:02"]
[BlackClock "0:00:29"]

1. e4 {[%clk 0:03:00]}  c5 {[%clk 0:02:59]} 2. Nf3 {[%clk 0:03:00]}  d6 {[%clk 0:02:59]} 3. d4 {[%clk 0:03:00]}  cxd4 {[%clk 0:02:59]} 4. Nxd4 {[%clk 0:03:01]}  Nf6 {[%clk 0:02:59]} 5. Nc3 {[%clk 0:03:02]}  Nc6 {[%clk 0:02:59]} 6. Be2 {[%clk 0:03:00]}  g6 {[%clk 0:02:58]} 7. O-O {[%clk 0:02:58]}  Bg7 {[%clk 0:02:58]} 8. Be3 {[%clk 0:02:58]}  O-O {[%clk 0:02:57]} 9. Qd2 {[%clk 0:02:58]}  Bd7 {[%clk 0:02:55]} 10. Rad1 {[%clk 0:02:57]}  Ng4 {[%clk 0:02:52]} 11. Bxg4 {[%clk 0:02:56]}  Bxg4 {[%clk 0:02:52]} 12. f3 {[%clk 0:02:55]}  Bd7 {[%clk 0:02:52]} 13. Nd5 {[%clk 0:02:53]}  e6 {[%clk 0:02:47]} 14. Nc3 {[%clk 0:02:43]}  Ne5 {[%clk 0:02:46]} 15. b3 {[%clk 0:02:28]}  a6 {[%clk 0:02:38]} 16. Nde2 {[%clk 0:02:10]}  Qc7 {[%clk 0:02:01]} 17. Qxd6 {[%clk 0:02:06]}  Rfc8 {[%clk 0:02:00]} 18. Qxc7 {[%clk 0:01:53]}  Rxc7 {[%clk 0:02:00]} 19. f4 {[%clk 0:01:43]}  Ng4 {[%clk 0:01:56]} 20. Bb6 {[%clk 0:01:43]}  Rc6 {[%clk 0:01:54]} 21. Bd4 {[%clk 0:01:22]}  e5 {[%clk 0:01:38]} 22. fxe5 {[%clk 0:01:19]}  Be6 {[%clk 0:01:37]} 23. Nf4 {[%clk 0:01:00]}  Nxe5 {[%clk 0:01:27]} 24. Nfd5 {[%clk 0:00:52]}  Kh8 {[%clk 0:01:17]} 25. h3 {[%clk 0:00:51]}  h5 {[%clk 0:01:15]} 26. Nf6 {[%clk 0:00:41]}  Nd7 {[%clk 0:01:00]} 27. Nxd7 {[%clk 0:00:40]}  Bxd4+ {[%clk 0:01:00]} 28. Rxd4 {[%clk 0:00:39]}  Rxc3 {[%clk 0:01:00]} 29. Ne5 {[%clk 0:00:29]}  Kg7 {[%clk 0:00:57]} 30. Rf2 {[%clk 0:00:24]}  Rac8 {[%clk 0:00:56]} 31. Rdd2 {[%clk 0:00:23]}  b5 {[%clk 0:00:50]} 32. a3 {[%clk 0:00:21]}  a5 {[%clk 0:00:43]} 33. Kf1 {[%clk 0:00:20]}  a4 {[%clk 0:00:43]} 34. bxa4 {[%clk 0:00:17]}  bxa4 {[%clk 0:00:43]} 35. Rf3 {[%clk 0:00:11]}  Rxc2 {[%clk 0:00:43]} 36. Rxc2 {[%clk 0:00:11]}  Rxc2 {[%clk 0:00:43]} 37. Nd3 {[%clk 0:00:09]}  Bb3 {[%clk 0:00:41]} 38. Nb4 {[%clk 0:00:07]}  Rc1+ {[%clk 0:00:41]} 39. Kf2 {[%clk 0:00:07]}  Ra1 {[%clk 0:00:41]} 40. e5 {[%clk 0:00:05]}  Rxa3 {[%clk 0:00:36]} 41. Kg3 {[%clk 0:00:05]}  Ra1 {[%clk 0:00:36]} 42. Nc6 {[%clk 0:00:05]}  Bd5 {[%clk 0:00:33]} 43. Rc3 {[%clk 0:00:04]}  a3 {[%clk 0:00:31]} 44. Nd4 {[%clk 0:00:02]}  a2 {[%clk 0:00:29]} 0-1


[Site "https://www.chess.com"]

[Event "Titled Tuesday Blitz September 21 2021"]
[White "Przybylski, Wojciech"]
[Black "Swapnil, S. Dhopade"]
[WhiteFideId "1117599"]
[BlackFideId "5019184"]
[WhiteElo "2285"]
[BlackElo "2402"]
[Result "0-1"]
[Round "04"]
[TimeControl "180+1"]
[Date "2021.09.21"]
[WhiteClock "0:00:01"]
[BlackClock "0:00:08"]

1. e4 {[%clk 0:03:00]}  c5 {[%clk 0:02:59]} 2. Nf3 {[%clk 0:03:00]}  d6 {[%clk 0:02:59]} 3. Bb5+ {[%clk 0:02:58]}  Bd7 {[%clk 0:02:55]} 4. a4 {[%clk 0:02:58]}  Nf6 {[%clk 0:02:48]} 5. Nc3 {[%clk 0:02:57]}  Nc6 {[%clk 0:02:47]} 6. h3 {[%clk 0:02:56]}  g6 {[%clk 0:02:41]} 7. O-O {[%clk 0:02:56]}  Bg7 {[%clk 0:02:42]} 8. Re1 {[%clk 0:02:55]}  O-O {[%clk 0:02:42]} 9. Bc4 {[%clk 0:02:56]}  e5 {[%clk 0:02:32]} 10. d3 {[%clk 0:02:52]}  Be6 {[%clk 0:02:25]} 11. Nd2 {[%clk 0:02:51]}  d5 {[%clk 0:02:17]} 12. exd5 {[%clk 0:02:48]}  Nxd5 {[%clk 0:02:16]} 13. Nxd5 {[%clk 0:02:32]}  Bxd5 {[%clk 0:02:15]} 14. Bxd5 {[%clk 0:02:27]}  Qxd5 {[%clk 0:02:15]} 15. Qf3 {[%clk 0:02:20]}  Rad8 {[%clk 0:01:58]} 16. Qxd5 {[%clk 0:02:16]}  Rxd5 {[%clk 0:01:59]} 17. Nb3 {[%clk 0:02:15]}  Nd4 {[%clk 0:01:51]} 18. Nxd4 {[%clk 0:02:03]}  cxd4 {[%clk 0:01:47]} 19. Bd2 {[%clk 0:01:57]}  Rc8 {[%clk 0:01:46]} 20. c4 {[%clk 0:01:53]}  dxc3 {[%clk 0:01:44]} 21. Bxc3 {[%clk 0:01:53]}  Rxd3 {[%clk 0:01:28]} 22. Bxe5 {[%clk 0:01:52]}  Bxe5 {[%clk 0:01:29]} 23. Rxe5 {[%clk 0:01:52]}  Rc2 {[%clk 0:01:28]} 24. Rb5 {[%clk 0:01:49]}  Rdd2 {[%clk 0:01:28]} 25. Rxb7 {[%clk 0:01:16]}  Rxf2 {[%clk 0:01:26]} 26. Rxa7 {[%clk 0:01:16]}  Rxg2+ {[%clk 0:01:26]} 27. Kh1 {[%clk 0:01:16]}  Rh2+ {[%clk 0:01:23]} 28. Kg1 {[%clk 0:01:16]}  Rcg2+ {[%clk 0:01:24]} 29. Kf1 {[%clk 0:01:16]}  Rxb2 {[%clk 0:01:25]} 30. Kg1 {[%clk 0:01:13]}  Rxh3 {[%clk 0:00:35]} 31. Rf1 {[%clk 0:01:12]}  Rg3+ {[%clk 0:00:30]} 32. Kh1 {[%clk 0:01:12]}  Rh3+ {[%clk 0:00:30]} 33. Kg1 {[%clk 0:01:12]}  Rg3+ {[%clk 0:00:28]} 34. Kh1 {[%clk 0:01:11]}  Ra3 {[%clk 0:00:29]} 35. Kg1 {[%clk 0:00:49]}  Raa2 {[%clk 0:00:23]} 36. Rfxf7 {[%clk 0:00:44]}  Ra1+ {[%clk 0:00:21]} 37. Rf1 {[%clk 0:00:44]}  Rxf1+ {[%clk 0:00:22]} 38. Kxf1 {[%clk 0:00:45]}  Ra2 {[%clk 0:00:23]} 39. a5 {[%clk 0:00:44]}  h5 {[%clk 0:00:18]} 40. a6 {[%clk 0:00:39]}  g5 {[%clk 0:00:19]} 41. Ra8+ {[%clk 0:00:33]}  Kg7 {[%clk 0:00:19]} 42. Kg1 {[%clk 0:00:14]}  h4 {[%clk 0:00:19]} 43. Kh1 {[%clk 0:00:11]}  g4 {[%clk 0:00:19]} 44. Ra7+ {[%clk 0:00:11]}  Kg6 {[%clk 0:00:18]} 45. Ra8 {[%clk 0:00:11]}  Kg5 {[%clk 0:00:19]} 46. a7 {[%clk 0:00:07]}  Ra1+ {[%clk 0:00:14]} 47. Kg2 {[%clk 0:00:07]}  h3+ {[%clk 0:00:15]} 48. Kf2 {[%clk 0:00:05]}  h2 {[%clk 0:00:10]} 49. Rg8+ {[%clk 0:00:04]}  Kf4 {[%clk 0:00:09]} 50. Rf8+ {[%clk 0:00:05]}  Kg5 {[%clk 0:00:09]} 51. Rg8+ {[%clk 0:00:05]}  Kf4 {[%clk 0:00:10]} 52. Rf8+ {[%clk 0:00:05]}  Ke5 {[%clk 0:00:10]} 53. Re8+ {[%clk 0:00:04]}  Kf6 {[%clk 0:00:10]} 54. Rh8 {[%clk 0:00:03]}  Rxa7 {[%clk 0:00:08]} 55. Rxh2 {[%clk 0:00:03]}  Kg5 {[%clk 0:00:09]} 56. Rh8 {[%clk 0:00:01]}  Ra2+ {[%clk 0:00:09]} 57. Kg3 {[%clk 0:00:01]}  Ra3+ {[%clk 0:00:09]} 58. Kg2 {[%clk 0:00:01]}  Ra2+ {[%clk 0:00:08]} 59. Kg3 {[%clk 0:00:01]}  Ra3+ {[%clk 0:00:08]} 0-1


[Site "https://www.chess.com"]

[Event "Titled Tuesday Blitz September 21 2021"]
[White "Rakhmanov, Aleksandr"]
[Black "Nenezic, Marko"]
[WhiteFideId "4173708"]
[BlackFideId "912123"]
[WhiteElo "2554"]
[BlackElo "2481"]
[Result "0-1"]
[Round "04"]
[TimeControl "180+1"]
[Date "2021.09.21"]
[WhiteClock "0:00:19"]
[BlackClock "0:00:55"]

1. d4 {[%clk 0:03:00]}  Nf6 {[%clk 0:03:00]} 2. Bf4 {[%clk 0:02:59]}  g6 {[%clk 0:02:58]} 3. Nc3 {[%clk 0:02:57]}  d5 {[%clk 0:02:59]} 4. e3 {[%clk 0:02:57]}  c6 {[%clk 0:02:59]} 5. h4 {[%clk 0:02:55]}  Bg7 {[%clk 0:02:58]} 6. Be2 {[%clk 0:02:43]}  Qb6 {[%clk 0:02:56]} 7. Rb1 {[%clk 0:02:42]}  h5 {[%clk 0:02:55]} 8. Nf3 {[%clk 0:02:41]}  Bg4 {[%clk 0:02:55]} 9. Ne5 {[%clk 0:02:36]}  Bxe2 {[%clk 0:02:55]} 10. Qxe2 {[%clk 0:02:36]}  Nbd7 {[%clk 0:02:51]} 11. a3 {[%clk 0:02:27]}  a6 {[%clk 0:02:33]} 12. f3 {[%clk 0:02:21]}  e6 {[%clk 0:02:05]} 13. Qd2 {[%clk 0:02:04]}  c5 {[%clk 0:01:59]} 14. Na4 {[%clk 0:01:54]}  Qb5 {[%clk 0:01:53]} 15. Nxc5 {[%clk 0:01:50]}  Nxc5 {[%clk 0:01:52]} 16. dxc5 {[%clk 0:01:51]}  Qxc5 {[%clk 0:01:51]} 17. c3 {[%clk 0:01:46]}  O-O {[%clk 0:01:50]} 18. Qd4 {[%clk 0:01:16]}  Qe7 {[%clk 0:01:42]} 19. Bg5 {[%clk 0:01:15]}  Qc7 {[%clk 0:01:43]} 20. Qf4 {[%clk 0:01:07]}  Ne8 {[%clk 0:01:35]} 21. Nxg6 {[%clk 0:00:48]}  fxg6 {[%clk 0:01:34]} 22. Qxc7 {[%clk 0:00:41]}  Nxc7 {[%clk 0:01:35]} 23. Ke2 {[%clk 0:00:40]}  Bf6 {[%clk 0:01:28]} 24. Bf4 {[%clk 0:00:37]}  e5 {[%clk 0:01:28]} 25. Bg3 {[%clk 0:00:38]}  Rfd8 {[%clk 0:01:26]} 26. Rhd1 {[%clk 0:00:38]}  Kf7 {[%clk 0:01:23]} 27. Rbc1 {[%clk 0:00:38]}  Ne6 {[%clk 0:01:12]} 28. c4 {[%clk 0:00:37]}  d4 {[%clk 0:01:12]} 29. b4 {[%clk 0:00:30]}  a5 {[%clk 0:01:09]} 30. b5 {[%clk 0:00:25]}  Nc5 {[%clk 0:01:04]} 31. exd4 {[%clk 0:00:23]}  exd4 {[%clk 0:01:05]} 32. Bc7 {[%clk 0:00:22]}  Rd7 {[%clk 0:01:05]} 33. Bf4 {[%clk 0:00:17]}  d3+ {[%clk 0:00:55]} 34. Kf2 {[%clk 0:00:18]}  Re8 {[%clk 0:00:55]} 35. Be3 {[%clk 0:00:17]}  Bxh4+ {[%clk 0:00:55]} 36. g3 {[%clk 0:00:18]}  Bxg3+ {[%clk 0:00:55]} 37. Kxg3 {[%clk 0:00:19]}  Rxe3 {[%clk 0:00:55]} 0-1


[Site "https://www.chess.com"]

[Event "Titled Tuesday Blitz September 21 2021"]
[White "Rojas Alarcon, Julian Antonio"]
[Black "Bilan, Danila"]
[WhiteFideId "5107407"]
[BlackFideId "24161918"]
[WhiteElo "2333"]
[BlackElo "2164"]
[Result "1-0"]
[Round "04"]
[TimeControl "180+1"]
[Date "2021.09.21"]
[WhiteClock "0:00:19"]
[BlackClock "0:00:06"]

1. c4 {[%clk 0:03:00]}  c6 {[%clk 0:02:58]} 2. Nf3 {[%clk 0:02:59]}  d5 {[%clk 0:02:58]} 3. b3 {[%clk 0:02:59]}  Nf6 {[%clk 0:02:58]} 4. Bb2 {[%clk 0:03:00]}  Bf5 {[%clk 0:02:58]} 5. d3 {[%clk 0:02:58]}  e6 {[%clk 0:02:55]} 6. h3 {[%clk 0:02:56]}  h6 {[%clk 0:02:52]} 7. g4 {[%clk 0:02:55]}  Bh7 {[%clk 0:02:50]} 8. Nbd2 {[%clk 0:02:54]}  Nbd7 {[%clk 0:02:49]} 9. Bg2 {[%clk 0:02:52]}  Bd6 {[%clk 0:02:46]} 10. a3 {[%clk 0:02:52]}  a5 {[%clk 0:02:41]} 11. Qc2 {[%clk 0:02:49]}  Qe7 {[%clk 0:02:26]} 12. Nd4 {[%clk 0:02:36]}  e5 {[%clk 0:02:00]} 13. Nf5 {[%clk 0:02:35]}  Bxf5 {[%clk 0:02:00]} 14. gxf5 {[%clk 0:02:36]}  d4 {[%clk 0:01:58]} 15. Bf3 {[%clk 0:02:24]}  Nh7 {[%clk 0:01:47]} 16. Ne4 {[%clk 0:02:20]}  Ng5 {[%clk 0:01:40]} 17. Nxd6+ {[%clk 0:02:13]}  Qxd6 {[%clk 0:01:40]} 18. Bg2 {[%clk 0:02:13]}  Nh7 {[%clk 0:01:28]} 19. e3 {[%clk 0:02:06]}  O-O-O {[%clk 0:01:13]} 20. O-O-O {[%clk 0:02:03]}  Nhf6 {[%clk 0:01:01]} 21. Kb1 {[%clk 0:01:55]}  Rhe8 {[%clk 0:00:58]} 22. Rhg1 {[%clk 0:01:46]}  Re7 {[%clk 0:00:52]} 23. Bf3 {[%clk 0:01:43]}  Ne8 {[%clk 0:00:52]} 24. Ka2 {[%clk 0:01:30]}  f6 {[%clk 0:00:47]} 25. h4 {[%clk 0:01:27]}  Qc7 {[%clk 0:00:41]} 26. c5 {[%clk 0:01:20]}  dxe3 {[%clk 0:00:22]} 27. fxe3 {[%clk 0:01:19]}  e4 {[%clk 0:00:22]} 28. Bxe4 {[%clk 0:01:17]}  Ne5 {[%clk 0:00:20]} 29. b4 {[%clk 0:01:02]}  axb4 {[%clk 0:00:19]} 30. axb4 {[%clk 0:01:03]}  Qd7 {[%clk 0:00:11]} 31. Qa4 {[%clk 0:00:59]}  Nc7 {[%clk 0:00:10]} 32. Kb1 {[%clk 0:00:33]}  Qe8 {[%clk 0:00:11]} 33. Bxe5 {[%clk 0:00:31]}  Rxe5 {[%clk 0:00:11]} 34. Rxg7 {[%clk 0:00:29]}  Rxe4 {[%clk 0:00:08]} 35. dxe4 {[%clk 0:00:29]}  Qxe4+ {[%clk 0:00:09]} 36. Kb2 {[%clk 0:00:29]}  Rxd1 {[%clk 0:00:07]} 37. Qxd1 {[%clk 0:00:29]}  Qxb4+ {[%clk 0:00:08]} 38. Qb3 {[%clk 0:00:27]}  Qd2+ {[%clk 0:00:06]} 39. Kb1 {[%clk 0:00:25]}  Qe1+ {[%clk 0:00:06]} 40. Ka2 {[%clk 0:00:25]}  Qd2+ {[%clk 0:00:06]} 41. Qb2 {[%clk 0:00:24]}  Qd5+ {[%clk 0:00:03]} 42. Qb3 {[%clk 0:00:24]}  Qd2+ {[%clk 0:00:03]} 43. Ka1 {[%clk 0:00:22]}  Qd1+ {[%clk 0:00:04]} 44. Qb1 {[%clk 0:00:22]}  Qa4+ {[%clk 0:00:03]} 45. Kb2 {[%clk 0:00:22]}  Nb5 {[%clk 0:00:04]} 46. Qd3 {[%clk 0:00:20]}  Qb4+ {[%clk 0:00:04]} 47. Kc2 {[%clk 0:00:19]}  Kb8 {[%clk 0:00:05]} 48. Qd8+ {[%clk 0:00:18]}  Ka7 {[%clk 0:00:06]} 49. Qb6+ {[%clk 0:00:18]}  Ka8 {[%clk 0:00:06]} 50. Qxb7# {[%clk 0:00:19]} 1-0


[Site "https://www.chess.com"]

[Event "Titled Tuesday Blitz September 21 2021"]
[White "Spyropoulos, Nikolaos"]
[Black "Yeletsky, Ivan"]
[WhiteFideId "4298977"]
[BlackFideId "24180327"]
[WhiteElo "2159"]
[BlackElo "2344"]
[Result "0-1"]
[Round "04"]
[TimeControl "180+1"]
[Date "2021.09.21"]
[WhiteClock "0:01:24"]
[BlackClock "0:01:02"]

1. d4 {[%clk 0:02:28]}  d5 {[%clk 0:02:30]} 2. Nf3 {[%clk 0:02:27]}  c6 {[%clk 0:02:29]} 3. Bf4 {[%clk 0:02:26]}  Bg4 {[%clk 0:02:28]} 4. Nbd2 {[%clk 0:02:26]}  Nd7 {[%clk 0:02:28]} 5. e3 {[%clk 0:02:26]}  Ngf6 {[%clk 0:02:24]} 6. c3 {[%clk 0:02:26]}  Nh5 {[%clk 0:02:22]} 7. Bg5 {[%clk 0:02:25]}  h6 {[%clk 0:02:21]} 8. Bh4 {[%clk 0:02:25]}  g5 {[%clk 0:02:21]} 9. Bg3 {[%clk 0:02:24]}  Bg7 {[%clk 0:02:20]} 10. Bd3 {[%clk 0:02:24]}  e5 {[%clk 0:02:18]} 11. dxe5 {[%clk 0:02:23]}  Nxg3 {[%clk 0:02:18]} 12. Be2 {[%clk 0:02:24]}  O-O {[%clk 0:02:13]} 13. hxg3 {[%clk 0:02:22]}  Qe7 {[%clk 0:02:12]} 14. Nd4 {[%clk 0:02:20]}  Bxe2 {[%clk 0:02:10]} 15. Qxe2 {[%clk 0:02:21]}  Qxe5 {[%clk 0:02:07]} 16. O-O-O {[%clk 0:02:11]}  c5 {[%clk 0:02:04]} 17. N4f3 {[%clk 0:02:11]}  Qe6 {[%clk 0:02:02]} 18. Kb1 {[%clk 0:02:11]}  b5 {[%clk 0:02:00]} 19. e4 {[%clk 0:02:09]}  Rab8 {[%clk 0:01:58]} 20. Rhe1 {[%clk 0:02:08]}  b4 {[%clk 0:01:56]} 21. exd5 {[%clk 0:02:09]}  Qxe2 {[%clk 0:01:53]} 22. Rxe2 {[%clk 0:02:09]}  bxc3 {[%clk 0:01:54]} 23. Nc4 {[%clk 0:02:10]}  cxb2 {[%clk 0:01:51]} 24. Rd3 {[%clk 0:02:08]}  Rb4 {[%clk 0:01:39]} 25. Nd6 {[%clk 0:01:32]}  c4 {[%clk 0:01:20]} 26. Rde3 {[%clk 0:01:32]}  Nb6 {[%clk 0:01:06]} 27. a3 {[%clk 0:01:24]}  Ra4 {[%clk 0:01:02]} 0-1


[Site "https://www.chess.com"]